[Event "Titled Tuesday Blitz November 01 Early 2022"]
[White "Csonka, Balazs"]
[Black "Kustar, Sandor"]
[WhiteFideId "742910"]
[BlackFideId "702900"]
[WhiteElo "2404"]
[BlackElo "2381"]
[Result "1/2-1/2"]
[Round "03"]
[TimeControl "180+1"]
[Date "2022.11.02"]
[WhiteClock "0:00:07"]
[BlackClock "0:00:06"]

1. d4 {[%clk 0:03:00]}  Nf6 {[%clk 0:02:59]} 2. c4 {[%clk 0:03:00]}  e6 {[%clk 0:02:58]} 3. Nc3 {[%clk 0:03:00]}  c5 {[%clk 0:02:58]} 4. d5 {[%clk 0:02:59]}  exd5 {[%clk 0:02:58]} 5. cxd5 {[%clk 0:03:00]}  d6 {[%clk 0:02:59]} 6. e4 {[%clk 0:02:59]}  g6 {[%clk 0:02:58]} 7. f4 {[%clk 0:02:59]}  Nfd7 {[%clk 0:02:40]} 8. Nf3 {[%clk 0:02:51]}  Bg7 {[%clk 0:02:40]} 9. Bd3 {[%clk 0:02:51]}  O-O {[%clk 0:02:40]} 10. O-O {[%clk 0:02:51]}  Nb6 {[%clk 0:02:34]} 11. h3 {[%clk 0:02:03]}  N8d7 {[%clk 0:02:33]} 12. Re1 {[%clk 0:01:50]}  Nf6 {[%clk 0:02:14]} 13. Bc2 {[%clk 0:01:37]}  a6 {[%clk 0:02:08]} 14. Rb1 {[%clk 0:01:25]}  Re8 {[%clk 0:02:07]} 15. b3 {[%clk 0:01:17]}  Nh5 {[%clk 0:01:47]} 16. Ne2 {[%clk 0:01:05]}  Nf6 {[%clk 0:01:34]} 17. Ng3 {[%clk 0:00:55]}  Bd7 {[%clk 0:01:34]} 18. Bb2 {[%clk 0:00:51]}  Qc7 {[%clk 0:01:12]} 19. Qd2 {[%clk 0:00:45]}  Rac8 {[%clk 0:01:10]} 20. Rbc1 {[%clk 0:00:44]}  c4 {[%clk 0:00:44]} 21. Bd4 {[%clk 0:00:40]}  Qd8 {[%clk 0:00:38]} 22. Qf2 {[%clk 0:00:35]}  Na8 {[%clk 0:00:36]} 23. bxc4 {[%clk 0:00:32]}  Rxc4 {[%clk 0:00:35]} 24. Bb3 {[%clk 0:00:32]}  Rxc1 {[%clk 0:00:35]} 25. Rxc1 {[%clk 0:00:33]}  Nxe4 {[%clk 0:00:25]} 26. Nxe4 {[%clk 0:00:29]}  Rxe4 {[%clk 0:00:25]} 27. Bxg7 {[%clk 0:00:16]}  Kxg7 {[%clk 0:00:25]} 28. Nd2 {[%clk 0:00:16]}  Re8 {[%clk 0:00:20]} 29. Nc4 {[%clk 0:00:14]}  Bb5 {[%clk 0:00:19]} 30. Qd4+ {[%clk 0:00:12]}  Qf6 {[%clk 0:00:18]} 31. Qxf6+ {[%clk 0:00:10]}  Kxf6 {[%clk 0:00:19]} 32. Nxd6 {[%clk 0:00:11]}  Rd8 {[%clk 0:00:14]} 33. Nxb7 {[%clk 0:00:09]}  Rd7 {[%clk 0:00:13]} 34. Nc5 {[%clk 0:00:09]}  Rd8 {[%clk 0:00:11]} 35. a4 {[%clk 0:00:07]}  Be8 {[%clk 0:00:11]} 36. a5 {[%clk 0:00:08]}  Nc7 {[%clk 0:00:11]} 37. Ne4+ {[%clk 0:00:03]}  Kf5 {[%clk 0:00:11]} 38. Ng3+ {[%clk 0:00:02]}  Kxf4 {[%clk 0:00:10]} 39. Ne2+ {[%clk 0:00:02]}  Ke3 {[%clk 0:00:11]} 40. Rxc7 {[%clk 0:00:02]}  Kxe2 {[%clk 0:00:11]} 41. d6 {[%clk 0:00:03]}  Bb5 {[%clk 0:00:11]} 42. Re7+ {[%clk 0:00:02]}  Kd2 {[%clk 0:00:10]} 43. Rxf7 {[%clk 0:00:02]}  Rxd6 {[%clk 0:00:10]} 44. Rxh7 {[%clk 0:00:03]}  Kc3 {[%clk 0:00:10]} 45. Bf7 {[%clk 0:00:03]}  Kb4 {[%clk 0:00:11]} 46. Rg7 {[%clk 0:00:02]}  Bd3 {[%clk 0:00:11]} 47. h4 {[%clk 0:00:02]}  Kxa5 {[%clk 0:00:11]} 48. g4 {[%clk 0:00:03]}  Kb4 {[%clk 0:00:11]} 49. Kf2 {[%clk 0:00:03]}  a5 {[%clk 0:00:11]} 50. Ke3 {[%clk 0:00:04]}  a4 {[%clk 0:00:11]} 51. Bg8 {[%clk 0:00:04]}  a3 {[%clk 0:00:10]} 52. Rb7+ {[%clk 0:00:04]}  Bb5 {[%clk 0:00:10]} 53. h5 {[%clk 0:00:04]}  gxh5 {[%clk 0:00:08]} 54. gxh5 {[%clk 0:00:05]}  Ra6 {[%clk 0:00:05]} 55. Kf4 {[%clk 0:00:04]}  a2 {[%clk 0:00:06]} 56. Bxa2 {[%clk 0:00:05]}  Rxa2 {[%clk 0:00:05]} 57. h6 {[%clk 0:00:05]}  Rh2 {[%clk 0:00:06]} 58. Kg5 {[%clk 0:00:05]}  Kc5 {[%clk 0:00:06]} 59. Kg6 {[%clk 0:00:05]}  Bd3+ {[%clk 0:00:06]} 60. Kg7 {[%clk 0:00:05]}  Kd5 {[%clk 0:00:06]} 61. Rd7+ {[%clk 0:00:05]}  Kc4 {[%clk 0:00:06]} 62. Rxd3 {[%clk 0:00:05]}  Kxd3 {[%clk 0:00:06]} 63. h7 {[%clk 0:00:06]}  Rxh7+ {[%clk 0:00:06]} 64. Kxh7 {[%clk 0:00:07]} 1/2-1/2


[Site "https://www.chess.com"]

[Event "Titled Tuesday Blitz November 01 Early 2022"]
[White "D`Arruda, Ricardo D."]
[Black "Koridze, Lile"]
[WhiteFideId "100692"]
[BlackFideId "13612514"]
[WhiteElo "2461"]
[BlackElo "2050"]
[Result "1-0"]
[Round "03"]
[TimeControl "180+1"]
[Date "2022.11.02"]
[WhiteClock "0:01:22"]
[BlackClock "0:01:56"]

1. d4 {[%clk 0:03:00]}  Nf6 {[%clk 0:02:59]} 2. Nf3 {[%clk 0:03:00]}  d5 {[%clk 0:02:59]} 3. c4 {[%clk 0:02:59]}  e6 {[%clk 0:02:59]} 4. e3 {[%clk 0:02:59]}  Bb4+ {[%clk 0:02:59]} 5. Nbd2 {[%clk 0:02:59]}  O-O {[%clk 0:02:59]} 6. Bd3 {[%clk 0:02:56]}  c5 {[%clk 0:02:59]} 7. a3 {[%clk 0:02:51]}  Bxd2+ {[%clk 0:02:59]} 8. Bxd2 {[%clk 0:02:50]}  cxd4 {[%clk 0:02:59]} 9. Nxd4 {[%clk 0:02:48]}  dxc4 {[%clk 0:02:59]} 10. Bxc4 {[%clk 0:02:47]}  Qe7 {[%clk 0:03:00]} 11. Bb4 {[%clk 0:02:43]}  Qc7 {[%clk 0:02:56]} 12. Bxf8 {[%clk 0:02:43]}  Qxc4 {[%clk 0:02:56]} 13. Bb4 {[%clk 0:02:39]}  Bd7 {[%clk 0:02:51]} 14. Qe2 {[%clk 0:02:34]}  Qd5 {[%clk 0:02:50]} 15. O-O {[%clk 0:02:29]}  Nc6 {[%clk 0:02:50]} 16. Nxc6 {[%clk 0:02:26]}  Bxc6 {[%clk 0:02:50]} 17. f3 {[%clk 0:02:27]}  h6 {[%clk 0:02:46]} 18. Rfd1 {[%clk 0:02:26]}  Qh5 {[%clk 0:02:45]} 19. Rac1 {[%clk 0:02:16]}  Nd5 {[%clk 0:02:40]} 20. Bd2 {[%clk 0:02:11]}  f5 {[%clk 0:02:32]} 21. Re1 {[%clk 0:02:00]}  Qg6 {[%clk 0:02:30]} 22. e4 {[%clk 0:01:56]}  Nf6 {[%clk 0:02:29]} 23. exf5 {[%clk 0:01:54]}  exf5 {[%clk 0:02:30]} 24. Bc3 {[%clk 0:01:51]}  Re8 {[%clk 0:02:10]} 25. Qf2 {[%clk 0:01:50]}  Rxe1+ {[%clk 0:02:10]} 26. Rxe1 {[%clk 0:01:50]}  Nd5 {[%clk 0:02:11]} 27. Qg3 {[%clk 0:01:45]}  Qf7 {[%clk 0:02:08]} 28. Qe5 {[%clk 0:01:42]}  Bd7 {[%clk 0:02:03]} 29. Bd4 {[%clk 0:01:36]}  b6 {[%clk 0:02:03]} 30. Qb8+ {[%clk 0:01:32]}  Kh7 {[%clk 0:02:02]} 31. Qxa7 {[%clk 0:01:32]}  f4 {[%clk 0:02:00]} 32. Qb8 {[%clk 0:01:25]}  Qg6 {[%clk 0:01:58]} 33. Qe5 {[%clk 0:01:23]}  Bh3 {[%clk 0:01:56]} 34. Qe4 {[%clk 0:01:22]} 1-0


[Site "https://www.chess.com"]

[Event "Titled Tuesday Blitz November 01 Early 2022"]
[White "Darini, Pouria"]
[Black "Buscar, Michael"]
[WhiteFideId "12502200"]
[BlackFideId "2603616"]
[WhiteElo "2483"]
[BlackElo "2010"]
[Result "1-0"]
[Round "03"]
[TimeControl "180+1"]
[Date "2022.11.02"]
[WhiteClock "0:00:32"]
[BlackClock "0:00:31"]

1. e4 {[%clk 0:02:59]}  c5 {[%clk 0:02:59]} 2. Nc3 {[%clk 0:02:55]}  g6 {[%clk 0:02:55]} 3. d4 {[%clk 0:02:54]}  cxd4 {[%clk 0:02:51]} 4. Qxd4 {[%clk 0:02:55]}  Nf6 {[%clk 0:02:51]} 5. Nf3 {[%clk 0:02:55]}  Nc6 {[%clk 0:02:50]} 6. Qa4 {[%clk 0:02:56]}  d6 {[%clk 0:02:48]} 7. e5 {[%clk 0:02:56]}  dxe5 {[%clk 0:02:38]} 8. Nxe5 {[%clk 0:02:57]}  Qc7 {[%clk 0:02:36]} 9. Bf4 {[%clk 0:02:40]}  Qb6 {[%clk 0:01:42]} 10. Bb5 {[%clk 0:00:53]}  Bd7 {[%clk 0:01:28]} 11. Nxd7 {[%clk 0:00:52]}  Kxd7 {[%clk 0:01:29]} 12. O-O-O+ {[%clk 0:00:51]}  Kc8 {[%clk 0:01:20]} 13. Qc4 {[%clk 0:00:40]}  a6 {[%clk 0:00:35]} 14. Qxf7 {[%clk 0:00:32]}  axb5 {[%clk 0:00:31]} 15. Qe6+ {[%clk 0:00:32]} 1-0


[Site "https://www.chess.com"]

[Event "Titled Tuesday Blitz November 01 Early 2022"]
[White "Dimitrov, Atanas"]
[Black "Vakhania, Alexandra"]
[WhiteFideId "2901315"]
[BlackFideId "13602560"]
[WhiteElo "2786"]
[BlackElo "2053"]
[Result "0-1"]
[Round "03"]
[TimeControl "180+1"]
[Date "2022.11.02"]
[WhiteClock "0:00:38"]
[BlackClock "0:00:20"]

1. e4 {[%clk 0:03:00]}  c6 {[%clk 0:02:59]} 2. d4 {[%clk 0:03:00]}  d5 {[%clk 0:02:58]} 3. e5 {[%clk 0:03:00]}  g6 {[%clk 0:02:57]} 4. Bd3 {[%clk 0:02:59]}  Bg7 {[%clk 0:02:47]} 5. c3 {[%clk 0:02:59]}  Nh6 {[%clk 0:02:47]} 6. h4 {[%clk 0:02:52]}  Bf5 {[%clk 0:02:44]} 7. h5 {[%clk 0:02:51]}  Bxd3 {[%clk 0:02:38]} 8. Qxd3 {[%clk 0:02:52]}  e6 {[%clk 0:02:38]} 9. Nf3 {[%clk 0:02:47]}  Nf5 {[%clk 0:02:37]} 10. Bg5 {[%clk 0:02:46]}  f6 {[%clk 0:02:31]} 11. exf6 {[%clk 0:02:41]}  Bxf6 {[%clk 0:02:30]} 12. Bxf6 {[%clk 0:02:41]}  Qxf6 {[%clk 0:02:30]} 13. Nbd2 {[%clk 0:02:39]}  Nd7 {[%clk 0:02:24]} 14. O-O-O {[%clk 0:02:35]}  O-O-O {[%clk 0:02:24]} 15. Rde1 {[%clk 0:02:31]}  Kb8 {[%clk 0:02:19]} 16. Ne5 {[%clk 0:02:23]}  Nxe5 {[%clk 0:02:11]} 17. Rxe5 {[%clk 0:02:24]}  gxh5 {[%clk 0:02:09]} 18. Rxh5 {[%clk 0:02:22]}  Rdg8 {[%clk 0:02:08]} 19. g3 {[%clk 0:02:22]}  h6 {[%clk 0:01:51]} 20. Qe2 {[%clk 0:02:16]}  Ng7 {[%clk 0:01:13]} 21. Rh4 {[%clk 0:02:15]}  h5 {[%clk 0:01:11]} 22. Rf4 {[%clk 0:01:57]}  Qg6 {[%clk 0:01:10]} 23. Nf3 {[%clk 0:01:55]}  Rf8 {[%clk 0:01:06]} 24. Nh4 {[%clk 0:01:52]}  Qh6 {[%clk 0:01:05]} 25. Ng2 {[%clk 0:01:48]}  Rf5 {[%clk 0:00:58]} 26. Rxf5 {[%clk 0:01:45]}  Nxf5 {[%clk 0:00:55]} 27. Qe5+ {[%clk 0:01:44]}  Kc8 {[%clk 0:00:55]} 28. Qxh8+ {[%clk 0:01:44]}  Qxh8 {[%clk 0:00:53]} 29. Kd2 {[%clk 0:01:27]}  Qg7 {[%clk 0:00:49]} 30. Ke2 {[%clk 0:01:21]}  Kd7 {[%clk 0:00:42]} 31. a3 {[%clk 0:01:18]}  Nd6 {[%clk 0:00:29]} 32. Ne3 {[%clk 0:01:16]}  Ne4 {[%clk 0:00:25]} 33. Rh4 {[%clk 0:01:08]}  Qf7 {[%clk 0:00:19]} 34. Rf4 {[%clk 0:01:06]}  Qg6 {[%clk 0:00:19]} 35. Ng2 {[%clk 0:00:57]}  Nd6 {[%clk 0:00:19]} 36. Ne3 {[%clk 0:00:55]}  Nc4 {[%clk 0:00:19]} 37. Nxc4 {[%clk 0:00:48]}  dxc4 {[%clk 0:00:20]} 38. Kf3 {[%clk 0:00:49]}  Qd3+ {[%clk 0:00:20]} 39. Kg2 {[%clk 0:00:50]}  Qd2 {[%clk 0:00:20]} 40. Rf7+ {[%clk 0:00:50]}  Kc8 {[%clk 0:00:21]} 41. Rf8+ {[%clk 0:00:50]}  Kc7 {[%clk 0:00:21]} 42. Rf7+ {[%clk 0:00:51]}  Kb6 {[%clk 0:00:21]} 43. Rh7 {[%clk 0:00:36]}  Qxb2 {[%clk 0:00:21]} 44. Rxh5 {[%clk 0:00:37]}  Qxc3 {[%clk 0:00:21]} 45. Re5 {[%clk 0:00:37]}  Qxd4 {[%clk 0:00:21]} 46. Rxe6 {[%clk 0:00:38]}  c3 {[%clk 0:00:21]} 47. Re1 {[%clk 0:00:38]}  c2 {[%clk 0:00:22]} 48. Kf1 {[%clk 0:00:38]}  Qd3+ {[%clk 0:00:21]} 49. Kg2 {[%clk 0:00:38]}  Qd2 {[%clk 0:00:21]} 50. Rd1 {[%clk 0:00:38]}  cxd1=Q {[%clk 0:00:20]} 0-1


[Site "https://www.chess.com"]

[Event "Titled Tuesday Blitz November 01 Early 2022"]
[White "Dubov, Daniil"]
[Black "Azarov, Sergei"]
[WhiteFideId "24126055"]
[BlackFideId "13501470"]
[WhiteElo "2791"]
[BlackElo "2494"]
[Result "1-0"]
[Round "03"]
[TimeControl "180+1"]
[Date "2022.11.01"]
[WhiteClock "0:00:04"]
[BlackClock "0:00:02"]

1. e4 {[%clk 0:02:52]}  e5 {[%clk 0:02:56]} 2. Nf3 {[%clk 0:02:51]}  Nc6 {[%clk 0:02:56]} 3. Bc4 {[%clk 0:02:51]}  Bc5 {[%clk 0:02:55]} 4. c3 {[%clk 0:02:50]}  Nf6 {[%clk 0:02:55]} 5. d4 {[%clk 0:02:49]}  exd4 {[%clk 0:02:55]} 6. cxd4 {[%clk 0:02:50]}  Bb4+ {[%clk 0:02:55]} 7. Nbd2 {[%clk 0:02:50]}  d5 {[%clk 0:02:54]} 8. exd5 {[%clk 0:02:50]}  Nxd5 {[%clk 0:02:54]} 9. O-O {[%clk 0:02:51]}  O-O {[%clk 0:02:54]} 10. Ne4 {[%clk 0:02:51]}  Be7 {[%clk 0:02:47]} 11. Re1 {[%clk 0:02:45]}  Bf5 {[%clk 0:02:43]} 12. Ng3 {[%clk 0:02:44]}  Bg6 {[%clk 0:02:39]} 13. a3 {[%clk 0:02:35]}  Bf6 {[%clk 0:02:23]} 14. Bb3 {[%clk 0:02:19]}  Nb6 {[%clk 0:02:05]} 15. Be3 {[%clk 0:02:13]}  Re8 {[%clk 0:01:55]} 16. Rc1 {[%clk 0:02:12]}  Nd5 {[%clk 0:01:40]} 17. Rc5 {[%clk 0:01:56]}  Nce7 {[%clk 0:01:28]} 18. h4 {[%clk 0:01:52]}  b6 {[%clk 0:01:09]} 19. Rc1 {[%clk 0:01:20]}  Nxe3 {[%clk 0:01:08]} 20. Rxe3 {[%clk 0:01:14]}  Nf5 {[%clk 0:01:02]} 21. Rxe8+ {[%clk 0:01:13]}  Qxe8 {[%clk 0:01:02]} 22. h5 {[%clk 0:01:14]}  Nxg3 {[%clk 0:01:01]} 23. hxg6 {[%clk 0:01:04]}  hxg6 {[%clk 0:00:47]} 24. fxg3 {[%clk 0:01:01]}  Qe3+ {[%clk 0:00:47]} 25. Kf1 {[%clk 0:01:01]}  Rd8 {[%clk 0:00:27]} 26. Rc3 {[%clk 0:00:47]}  Qh6 {[%clk 0:00:27]} 27. Kf2 {[%clk 0:00:35]}  c5 {[%clk 0:00:25]} 28. Rd3 {[%clk 0:00:35]}  cxd4 {[%clk 0:00:23]} 29. Qd2 {[%clk 0:00:31]}  Qh5 {[%clk 0:00:20]} 30. Qf4 {[%clk 0:00:31]}  Qc5 {[%clk 0:00:19]} 31. g4 {[%clk 0:00:30]}  g5 {[%clk 0:00:19]} 32. Qe4 {[%clk 0:00:28]}  Kf8 {[%clk 0:00:17]} 33. g3 {[%clk 0:00:25]}  Re8 {[%clk 0:00:17]} 34. Qd5 {[%clk 0:00:25]}  Qc7 {[%clk 0:00:16]} 35. Rd2 {[%clk 0:00:21]}  g6 {[%clk 0:00:14]} 36. Kg2 {[%clk 0:00:21]}  Kg7 {[%clk 0:00:14]} 37. Nxd4 {[%clk 0:00:20]}  Re3 {[%clk 0:00:14]} 38. Nf3 {[%clk 0:00:15]}  Qe7 {[%clk 0:00:14]} 39. Rf2 {[%clk 0:00:14]}  Qc7 {[%clk 0:00:10]} 40. Bc4 {[%clk 0:00:12]}  a5 {[%clk 0:00:09]} 41. b3 {[%clk 0:00:12]}  Qe7 {[%clk 0:00:08]} 42. a4 {[%clk 0:00:12]}  Qc7 {[%clk 0:00:09]} 43. Re2 {[%clk 0:00:09]}  Rxe2+ {[%clk 0:00:08]} 44. Bxe2 {[%clk 0:00:10]}  Qc2 {[%clk 0:00:08]} 45. Qc4 {[%clk 0:00:09]}  Qb2 {[%clk 0:00:08]} 46. Qd3 {[%clk 0:00:09]}  Qa2 {[%clk 0:00:07]} 47. Nd2 {[%clk 0:00:08]}  Qb2 {[%clk 0:00:07]} 48. Nc4 {[%clk 0:00:07]}  Qa2 {[%clk 0:00:06]} 49. Nxb6 {[%clk 0:00:07]}  Qa1 {[%clk 0:00:07]} 50. Nc4 {[%clk 0:00:06]}  Bd4 {[%clk 0:00:07]} 51. Bf1 {[%clk 0:00:05]}  Qa2+ {[%clk 0:00:07]} 52. Nd2 {[%clk 0:00:05]}  Qb2 {[%clk 0:00:07]} 53. Be2 {[%clk 0:00:05]}  Bc3 {[%clk 0:00:06]} 54. Ne4 {[%clk 0:00:05]}  Bd4 {[%clk 0:00:06]} 55. Kf3 {[%clk 0:00:05]}  Qa1 {[%clk 0:00:06]} 56. Nf2 {[%clk 0:00:05]}  Qb2 {[%clk 0:00:06]} 57. Ne4 {[%clk 0:00:04]}  f5 {[%clk 0:00:06]} 58. gxf5 {[%clk 0:00:04]}  gxf5 {[%clk 0:00:06]} 59. Nxg5 {[%clk 0:00:04]}  Kf6 {[%clk 0:00:06]} 60. Nh3 {[%clk 0:00:04]}  Qa1 {[%clk 0:00:06]} 61. Kg2 {[%clk 0:00:05]}  Qb2 {[%clk 0:00:06]} 62. Qf3 {[%clk 0:00:04]}  Ke5 {[%clk 0:00:04]} 63. Qf4+ {[%clk 0:00:04]}  Kf6 {[%clk 0:00:03]} 64. Qf3 {[%clk 0:00:04]}  Ke5 {[%clk 0:00:03]} 65. g4 {[%clk 0:00:04]}  fxg4 {[%clk 0:00:03]} 66. Qf4+ {[%clk 0:00:04]}  Ke6 {[%clk 0:00:02]} 67. Qxg4+ {[%clk 0:00:04]}  Kd6 {[%clk 0:00:03]} 68. Qf3 {[%clk 0:00:04]}  Kc5 {[%clk 0:00:03]} 69. Nf4 {[%clk 0:00:04]}  Qa1 {[%clk 0:00:02]} 70. Nd3+ {[%clk 0:00:04]}  Kd6 {[%clk 0:00:02]} 71. Qf4+ {[%clk 0:00:04]}  Ke6 {[%clk 0:00:01]} 72. Qe4+ {[%clk 0:00:03]}  Kf6 {[%clk 0:00:02]} 73. Qf4+ {[%clk 0:00:03]}  Ke7 {[%clk 0:00:02]} 74. Qh4+ {[%clk 0:00:03]}  Kd6 {[%clk 0:00:02]} 75. Kf3 {[%clk 0:00:04]} 1-0


[Site "https://www.chess.com"]

[Event "Titled Tuesday Blitz November 01 Early 2022"]
[White "Dushyant Sharma"]
[Black "Makarian, Rudik"]
[WhiteFideId "25065130"]
[BlackFideId "44105681"]
[WhiteElo "2270"]
[BlackElo "2405"]
[Result "1/2-1/2"]
[Round "03"]
[TimeControl "180+1"]
[Date "2022.11.02"]
[WhiteClock "0:00:14"]
[BlackClock "0:00:37"]

1. e4 {[%clk 0:03:00]}  d6 {[%clk 0:02:57]} 2. d4 {[%clk 0:02:51]}  Nf6 {[%clk 0:02:58]} 3. Nc3 {[%clk 0:02:51]}  e6 {[%clk 0:02:58]} 4. Be3 {[%clk 0:02:51]}  Nc6 {[%clk 0:02:58]} 5. f3 {[%clk 0:02:47]}  Be7 {[%clk 0:02:57]} 6. Qd2 {[%clk 0:02:48]}  e5 {[%clk 0:02:57]} 7. d5 {[%clk 0:02:46]}  Nb8 {[%clk 0:02:54]} 8. O-O-O {[%clk 0:02:45]}  a6 {[%clk 0:02:53]} 9. g4 {[%clk 0:02:45]}  b5 {[%clk 0:02:53]} 10. h4 {[%clk 0:02:45]}  Nbd7 {[%clk 0:02:52]} 11. Nge2 {[%clk 0:02:38]}  b4 {[%clk 0:02:51]} 12. Nb1 {[%clk 0:02:32]}  a5 {[%clk 0:02:51]} 13. Ng3 {[%clk 0:02:32]}  Nf8 {[%clk 0:02:49]} 14. h5 {[%clk 0:02:28]}  h6 {[%clk 0:02:49]} 15. Bb5+ {[%clk 0:02:24]}  Bd7 {[%clk 0:02:45]} 16. Bxd7+ {[%clk 0:02:20]}  N8xd7 {[%clk 0:02:46]} 17. Nf5 {[%clk 0:02:20]}  Rg8 {[%clk 0:02:40]} 18. g5 {[%clk 0:02:16]}  hxg5 {[%clk 0:02:40]} 19. Bxg5 {[%clk 0:02:05]}  Qb8 {[%clk 0:02:34]} 20. Rhg1 {[%clk 0:01:59]}  a4 {[%clk 0:02:30]} 21. Nxe7 {[%clk 0:01:48]}  Kxe7 {[%clk 0:02:29]} 22. f4 {[%clk 0:01:47]}  b3 {[%clk 0:02:27]} 23. cxb3 {[%clk 0:01:39]}  axb3 {[%clk 0:02:28]} 24. a3 {[%clk 0:01:39]}  Ra4 {[%clk 0:02:15]} 25. Nc3 {[%clk 0:01:32]}  Rc4 {[%clk 0:02:11]} 26. fxe5 {[%clk 0:01:08]}  dxe5 {[%clk 0:02:10]} 27. Kb1 {[%clk 0:00:58]}  Kf8 {[%clk 0:02:03]} 28. Qd3 {[%clk 0:00:54]}  Rd4 {[%clk 0:01:59]} 29. Qe3 {[%clk 0:00:41]}  Rxd1+ {[%clk 0:01:55]} 30. Rxd1 {[%clk 0:00:42]}  Nxh5 {[%clk 0:01:53]} 31. d6 {[%clk 0:00:34]}  cxd6 {[%clk 0:01:47]} 32. Nd5 {[%clk 0:00:31]}  Nhf6 {[%clk 0:01:45]} 33. Nxf6 {[%clk 0:00:27]}  Nxf6 {[%clk 0:01:46]} 34. Qf3 {[%clk 0:00:11]}  Ne8 {[%clk 0:01:40]} 35. Rf1 {[%clk 0:00:07]}  f6 {[%clk 0:01:40]} 36. Bd2 {[%clk 0:00:07]}  Qb5 {[%clk 0:01:39]} 37. Bb4 {[%clk 0:00:06]}  Rh8 {[%clk 0:01:38]} 38. Rc1 {[%clk 0:00:06]}  Rh4 {[%clk 0:01:32]} 39. Qxb3 {[%clk 0:00:05]}  Qd7 {[%clk 0:01:26]} 40. Qd5 {[%clk 0:00:04]}  Qf7 {[%clk 0:01:16]} 41. Bxd6+ {[%clk 0:00:04]}  Nxd6 {[%clk 0:01:12]} 42. Qxd6+ {[%clk 0:00:05]}  Kg8 {[%clk 0:01:13]} 43. Rc8+ {[%clk 0:00:05]}  Kh7 {[%clk 0:01:13]} 44. Rc7 {[%clk 0:00:06]}  Qg6 {[%clk 0:01:13]} 45. Qd3 {[%clk 0:00:05]}  Qxe4 {[%clk 0:01:11]} 46. Qxe4+ {[%clk 0:00:05]}  Rxe4 {[%clk 0:01:12]} 47. b4 {[%clk 0:00:05]}  f5 {[%clk 0:01:11]} 48. b5 {[%clk 0:00:06]}  f4 {[%clk 0:01:06]} 49. b6 {[%clk 0:00:06]}  f3 {[%clk 0:01:07]} 50. b7 {[%clk 0:00:05]}  f2 {[%clk 0:01:07]} 51. Rc1 {[%clk 0:00:05]}  Re1 {[%clk 0:01:05]} 52. b8=Q {[%clk 0:00:05]}  f1=Q {[%clk 0:01:01]} 53. Rxe1 {[%clk 0:00:04]}  Qxe1+ {[%clk 0:01:01]} 54. Ka2 {[%clk 0:00:05]}  Qd2+ {[%clk 0:00:58]} 55. Kb3 {[%clk 0:00:05]}  e4 {[%clk 0:00:57]} 56. Qe5 {[%clk 0:00:04]}  Qd3+ {[%clk 0:00:56]} 57. Kb4 {[%clk 0:00:04]}  Qf3 {[%clk 0:00:54]} 58. Kc4 {[%clk 0:00:03]}  e3 {[%clk 0:00:54]} 59. Kd3 {[%clk 0:00:03]}  e2+ {[%clk 0:00:52]} 60. Kd2 {[%clk 0:00:04]}  Qxa3 {[%clk 0:00:48]} 61. Qh5+ {[%clk 0:00:04]}  Kg8 {[%clk 0:00:49]} 62. Qd5+ {[%clk 0:00:04]}  Kf8 {[%clk 0:00:49]} 63. Qf5+ {[%clk 0:00:05]}  Ke8 {[%clk 0:00:48]} 64. Qe5+ {[%clk 0:00:05]}  Qe7 {[%clk 0:00:48]} 65. Qb5+ {[%clk 0:00:06]}  Kf7 {[%clk 0:00:47]} 66. Qf5+ {[%clk 0:00:06]}  Qf6 {[%clk 0:00:48]} 67. Qd7+ {[%clk 0:00:07]}  Kg6 {[%clk 0:00:48]} 68. Kxe2 {[%clk 0:00:07]}  Kg5 {[%clk 0:00:48]} 69. Qd5+ {[%clk 0:00:07]}  Qf5 {[%clk 0:00:48]} 70. Qd8+ {[%clk 0:00:07]}  Kh6 {[%clk 0:00:44]} 71. Qg8 {[%clk 0:00:08]}  g6 {[%clk 0:00:35]} 72. Ke3 {[%clk 0:00:08]}  Qf6 {[%clk 0:00:31]} 73. Qe8 {[%clk 0:00:07]}  Kg5 {[%clk 0:00:31]} 74. Qb5+ {[%clk 0:00:08]}  Qf5 {[%clk 0:00:31]} 75. Qxf5+ {[%clk 0:00:08]}  Kxf5 {[%clk 0:00:29]} 76. Kf3 {[%clk 0:00:08]}  Kg5 {[%clk 0:00:29]} 77. Kg3 {[%clk 0:00:09]}  Kh5 {[%clk 0:00:30]} 78. Kh3 {[%clk 0:00:09]}  g5 {[%clk 0:00:30]} 79. Kg3 {[%clk 0:00:10]}  g4 {[%clk 0:00:30]} 80. Kg2 {[%clk 0:00:10]}  Kh4 {[%clk 0:00:31]} 81. Kh2 {[%clk 0:00:11]}  g3+ {[%clk 0:00:32]} 82. Kg2 {[%clk 0:00:11]}  Kg4 {[%clk 0:00:33]} 83. Kg1 {[%clk 0:00:12]}  Kf4 {[%clk 0:00:34]} 84. Kg2 {[%clk 0:00:12]}  Kg4 {[%clk 0:00:35]} 85. Kg1 {[%clk 0:00:13]}  Kf3 {[%clk 0:00:35]} 86. Kf1 {[%clk 0:00:13]}  g2+ {[%clk 0:00:36]} 87. Kg1 {[%clk 0:00:14]}  Kg3 {[%clk 0:00:37]} 1/2-1/2


[Site "https://www.chess.com"]